bitfinex/quotes_BTCUSD_20250730
["timestamp","ask_amount","ask_price","bid_price","bid_amount"]
[1753842182593,0.37238202,118180.0,118170.0,0.0894773]
[1753842182805,0.37238202,118180.0,118170.0,0.005]
[1753842182806,5.08219868,118180.0,118170.0,0.005]
[1753842182999,5.05993897,118180.0,118170.0,0.005]
[1753842183669,5.05993897,118180.0,118170.0,0.002]
[1753842183670,5.05147788,118180.0,118170.0,0.002]
[1753842184520,0.3709,118170.0,118160.0,0.16964516]
[1753842184764,0.39932,118170.0,118160.0,0.16964516]
[1753842184945,0.40778188,118170.0,118160.0,0.16964516]
[1753842185151,0.39932,118170.0,118160.0,0.16964516]
[1753842185716,0.39932,118170.0,118160.0,0.17164516]
[1753842186326,0.42470585,118170.0,118160.0,0.17164516]
[1753842186782,0.42470585,118170.0,118160.0,0.17464516]
[1753842187155,0.60241585,118170.0,118160.0,0.005]
[1753842187366,4.69516016,118170.0,118160.0,0.13556]
[1753842187700,4.686698,118170.0,118160.0,0.005]
[1753842188099,0.00846274,118160.0,118150.0,0.16964516]
[1753842188262,4.53366586,118160.0,118150.0,0.13056]
[1753842188867,4.52520312,118160.0,118150.0,0.13056]
[1753842189077,4.51674045,118160.0,118150.0,0.13056]
[1753842189523,4.52520304,118160.0,118150.0,0.13256]
[1753842189725,4.52520297,118160.0,118150.0,0.13256]
[1753842189930,4.51375045,118160.0,118150.0,0.13256]
[1753842190139,0.36542,118160.0,118150.0,0.15638]
[1753842190350,0.34,118160.0,118150.0,0.20362516]
[1753842190553,0.34,118160.0,118150.0,0.23542516]
[1753842190961,0.34,118160.0,118150.0,0.31990246]
[1753842191577,4.109668,118170.0,118160.0,0.07038516]
[1753842191817,0.34,118170.0,118160.0,0.07242516]
[1753842192020,0.34,118170.0,118160.0,0.09936516]
[1753842192876,0.34,118170.0,118160.0,0.10036516]
[1753842193453,0.34,118170.0,118160.0,0.10236516]
[1753842195495,0.34,118170.0,118160.0,0.18684246]
[1753842195640,0.68697202,118180.0,118170.0,0.07128516]
[1753842195838,0.68697202,118180.0,118170.0,0.28832246]
[1753842196060,0.68697202,118180.0,118170.0,0.31526246]
[1753842197101,0.68697202,118180.0,118170.0,0.31626246]
[1753842198074,0.67829835,118180.0,118170.0,0.31626246]
[1753842198514,0.34004835,118180.0,118170.0,0.31626246]
[1753842199534,4.835e-05,118180.0,118170.0,0.31826246]
[1753842199736,4.835e-05,118180.0,118170.0,0.31726246]
[1753842200401,4.835e-05,118180.0,118170.0,0.32026246]
[1753842202438,4.835e-05,118180.0,118170.0,0.50643484]
[1753842202659,4.835e-05,118180.0,118170.0,0.48951015]
[1753842202896,4.835e-05,118180.0,118170.0,0.50643455]
[1753842203113,4.835e-05,118180.0,118170.0,0.52035852]
[1753842203335,0.55687835,118230.0,118210.0,0.03908516]
[1753842203574,0.54038,118230.0,118220.0,0.16956516]
[1753842203808,0.37443972,118230.0,118220.0,0.16956516]
[1753842204052,0.35055972,118230.0,118220.0,0.27691246]
[1753842204262,0.35055972,118230.0,118220.0,0.27904246]
[1753842204476,0.34853972,118230.0,118220.0,0.28224246]
[1753842204680,0.34853972,118230.0,118220.0,0.27691246]
[1753842204681,0.35055972,118230.0,118220.0,0.27691246]
[1753842204933,0.35055972,118230.0,118220.0,0.25404246]
[1753842205169,0.39368972,118230.0,118220.0,0.25504246]
[1753842206092,0.40214716,118230.0,118220.0,0.25504246]
[1753842206301,0.39368972,118230.0,118220.0,0.25504246]
[1753842206514,0.39368972,118230.0,118220.0,0.25404246]
[1753842206974,0.39368972,118230.0,118220.0,0.25504246]
[1753842207200,0.41824723,118230.0,118220.0,0.25504246]
[1753842207413,0.40978972,118230.0,118220.0,0.25504246]
[1753842209308,0.41824723,118230.0,118220.0,0.25504246]
[1753842209876,0.40978972,118230.0,118220.0,0.25504246]
[1753842210689,0.39073972,118230.0,118220.0,0.25504246]
[1753842211592,0.3991973,118230.0,118220.0,0.25504246]
[1753842211835,0.42620503,118230.0,118220.0,0.17056516]
[1753842212303,0.40928972,118230.0,118220.0,0.17056516]
[1753842212843,0.40633972,118230.0,118220.0,0.17056516]
[1753842213097,0.41479723,118230.0,118220.0,0.16956516]
[1753842213513,0.42325474,118230.0,118220.0,0.16956516]
[1753842213977,0.41479716,118230.0,118220.0,0.16956516]
[1753842214469,0.40633972,118230.0,118220.0,0.16956516]
[1753842214697,0.42325482,118230.0,118220.0,0.16956516]
[1753842214923,0.41774716,118230.0,118220.0,0.16956516]
[1753842215186,0.42620474,118230.0,118220.0,0.16956516]
[1753842215654,0.42620467,118230.0,118220.0,0.16956516]
[1753842215878,0.43466233,118230.0,118220.0,0.16956516]
[1753842216368,0.44312006,118230.0,118220.0,0.16956516]
[1753842216600,0.45157793,118230.0,118220.0,0.16956516]
[1753842217281,0.44312006,118230.0,118220.0,0.16956516]
[1753842217985,0.04791681,118220.0,118210.0,0.03916717]
[1753842218251,4.50806354,118220.0,118210.0,0.16956717]
[1753842218463,4.53489354,118220.0,118210.0,0.16956717]
[1753842219317,4.53489354,118220.0,118210.0,0.17056717]
[1753842219525,4.53489347,118220.0,118210.0,0.17056717]
[1753842220203,4.53489347,118220.0,118210.0,0.17256717]
[1753842220420,4.54335227,118220.0,118210.0,0.17256717]
[1753842220835,4.71252838,118220.0,118210.0,0.17256717]
[1753842221467,4.71252838,118220.0,118210.0,0.13348201]
[1753842221680,4.7215191,118220.0,118210.0,0.13348201]
[1753842221901,4.71306059,118220.0,118210.0,0.13348201]
[1753842222821,4.71306059,118220.0,118210.0,0.13048201]
[1753842223253,4.71406059,118220.0,118210.0,0.13048201]
[1753842224131,4.84446059,118220.0,118210.0,8.201e-05]
[1753842224959,0.73479259,118220.0,118210.0,8.201e-05]
[1753842225173,4.84446059,118220.0,118210.0,8.201e-05]
[1753842225830,4.85988081,118220.0,118210.0,8.201e-05]
[1753842226044,5.00988081,118220.0,118210.0,8.201e-05]
[1753842226476,4.99446059,118220.0,118210.0,8.201e-05]
[1753842229132,5.01271372,118220.0,118210.0,8.201e-05]
[1753842233246,4.99446059,118220.0,118210.0,8.201e-05]
[1753842233620,5.01271532,118220.0,118210.0,8.201e-05]
[1753842236460,5.09715262,118220.0,118210.0,8.201e-05]
[1753842236678,5.2378407,118220.0,118210.0,8.201e-05]
[1753842237104,1.1281727,118220.0,118210.0,8.201e-05]
[1753842237321,5.2378407,118220.0,118210.0,8.201e-05]
[1753842238188,5.4387107,118220.0,118210.0,8.201e-05]
[1753842238403,5.43849085,118220.0,118210.0,8.201e-05]
[1753842238614,5.41623114,118220.0,118210.0,8.201e-05]
[1753842239035,5.41523114,118220.0,118210.0,8.201e-05]
[1753842239493,5.41723114,118220.0,118210.0,8.201e-05]
[1753842239927,5.41923114,118220.0,118210.0,8.201e-05]
[1753842240752,5.75760114,118220.0,118210.0,8.201e-05]
[1753842241306,5.83341974,118220.0,118210.0,8.201e-05]
[1753842241537,0.55206673,118180.0,118170.0,0.09475613]
[1753842241771,4.80749473,118180.0,118170.0,0.09681613]
[1753842241987,4.6686735,118180.0,118170.0,0.09681613]
[1753842242453,0.5590055,118180.0,118170.0,0.09681613]
[1753842242678,4.6686735,118180.0,118170.0,0.09681613]
[1753842242914,4.6862035,118180.0,118170.0,0.09781613]
[1753842243142,4.6862035,118180.0,118170.0,0.09981613]
[1753842243657,4.9010408,118180.0,118170.0,0.03189]
[1753842243888,5.1355181,118180.0,118170.0,0.02474]
[1753842244134,5.1623581,118180.0,118170.0,0.001]
[1753842244354,0.19515895,118170.0,118160.0,0.02683]
[1753842244590,4.31992695,118170.0,118160.0,0.02893835]
[1753842245294,4.40440425,118170.0,118160.0,0.02893835]
[1753842246282,4.42980858,118170.0,118160.0,0.02893835]
[1753842247866,4.71219858,118170.0,118160.0,0.02584835]
[1753842248100,4.75227858,118170.0,118160.0,0.02378835]
[1753842248340,4.75227858,118170.0,118160.0,4.835e-05]
[1753842250407,5.09227858,118170.0,118160.0,4.835e-05]
[1753842252871,5.14314858,118170.0,118160.0,4.835e-05]
[1753842253086,5.09227858,118170.0,118160.0,4.835e-05]
[1753842253306,5.09227858,118170.0,118160.0,0.02378835]
[1753842253522,5.06839858,118170.0,118160.0,0.02378835]
[1753842254015,5.06839858,118170.0,118160.0,0.02687835]
[1753842254244,4.85356128,118170.0,118160.0,0.02687835]
[1753842254465,0.74389328,118170.0,118160.0,0.02893835]
[1753842254693,4.98392128,118170.0,118160.0,0.02893835]
[1753842255568,4.98392128,118170.0,118160.0,0.02584835]
[1753842256047,4.98392128,118170.0,118160.0,0.02378835]
[1753842256256,5.06839858,118170.0,118160.0,0.02378835]
[1753842256902,0.95873058,118170.0,118160.0,0.02378835]
[1753842257120,1.04320788,118170.0,118160.0,4.835e-05]
[1753842257340,5.17970588,118170.0,118160.0,4.835e-05]
[1753842257575,5.66870182,118170.0,118160.0,4.835e-05]
[1753842258240,5.68693999,118170.0,118160.0,4.835e-05]
[1753842258459,6.02530999,118170.0,118160.0,4.835e-05]
[1753842258680,6.00227376,118170.0,118160.0,4.835e-05]
[1753842259201,5.98001405,118170.0,118160.0,4.835e-05]
[1753842259652,5.56341309,118170.0,118160.0,0.02850835]
[1753842259875,5.28252804,118170.0,118160.0,0.05950835]
[1753842260097,5.2919902,118170.0,118160.0,0.05950835]
[1753842260320,5.28405309,118170.0,118160.0,0.05950835]
[1753842260546,5.29151497,118170.0,118160.0,0.05950835]
[1753842260735,5.29997699,118170.0,118160.0,0.05950835]
[1753842260948,5.29251497,118170.0,118160.0,0.05950835]
[1753842261155,5.28405309,118170.0,118160.0,0.05950835]
[1753842261398,5.29151497,118170.0,118160.0,0.05950835]
[1753842263895,5.29997699,118170.0,118160.0,0.05950835]
[1753842264137,5.29151497,118170.0,118160.0,0.05950835]
[1753842264393,5.28305309,118170.0,118160.0,0.05950835]
[1753842264608,5.29151497,118170.0,118160.0,0.05950835]
[1753842265086,4.891738,118170.0,118160.0,0.05950835]
[1753842265355,0.33837,118170.0,118160.0,0.18518658]
[1753842265613,0.67837,118170.0,118160.0,0.18307081]
[1753842268095,0.67837,118170.0,118160.0,0.18407081]
[1753842268894,0.67837,118170.0,118160.0,0.18507081]
[1753842269693,0.67837,118170.0,118160.0,0.18407081]
[1753842270136,0.67837,118170.0,118160.0,0.18607081]
[1753842277709,0.72105376,118170.0,118160.0,0.01884835]
[1753842277952,0.72105376,118170.0,118160.0,0.13336835]
[1753842278168,0.69727369,118170.0,118160.0,0.15661835]
[1753842278581,0.68881188,118170.0,118160.0,0.15661835]
[1753842278782,0.72105369,118170.0,118160.0,0.13336835]
[1753842279416,0.72105369,118170.0,118160.0,0.13236835]
[1753842279617,0.72105369,118170.0,118160.0,0.13036835]
[1753842279848,0.72105369,118170.0,118160.0,0.13136835]
[1753842280486,0.71259181,118170.0,118160.0,0.13136835]
[1753842280665,0.71259174,118170.0,118160.0,0.15461835]
[1753842280905,0.67837,118170.0,118160.0,0.15669835]
[1753842281115,0.67837,118170.0,118160.0,0.31660658]
[1753842281320,0.67837,118170.0,118160.0,0.31449081]
[1753842285999,0.68034,118170.0,118160.0,0.13136835]
[1753842286211,0.75455383,118170.0,118160.0,0.13136835]
[1753842286631,0.71258181,118170.0,118160.0,0.13136835]
[1753842286832,0.67837,118170.0,118160.0,0.15982835]
[1753842287073,0.67837,118170.0,118160.0,0.19092835]
[1753842287285,0.67837,118170.0,118160.0,0.31449081]
[1753842289390,0.33837,118170.0,118160.0,0.31449081]
[1753842289593,0.34,118190.0,118180.0,0.03908516]
[1753842289811,4.449668,118190.0,118180.0,0.20315516]
[1753842290034,0.34,118190.0,118180.0,0.22890516]
[1753842290257,0.34,118190.0,118180.0,0.18982]
[1753842292020,0.341,118190.0,118180.0,0.18982]
[1753842292236,0.342,118190.0,118180.0,0.18982]
[1753842292851,0.34,118190.0,118180.0,0.18982]
[1753842294621,0.375822,118190.0,118180.0,0.13028]
[1753842294842,0.40506127,118190.0,118180.0,0.13028]
[1753842295067,0.59349376,118190.0,118170.0,0.03908516]
[1753842295280,4.68098953,118190.0,118180.0,0.13028]
[1753842295493,4.66951858,118190.0,118180.0,0.13024]
[1753842295692,4.69221858,118190.0,118180.0,0.13024]
[1753842295890,4.77669588,118190.0,118180.0,0.13024]
[1753842296111,4.77970588,118190.0,118180.0,0.13024]
[1753842296942,0.04962268,118180.0,118170.0,0.13024]
[1753842297150,0.07731268,118180.0,118170.0,0.13024]
[1753842297353,0.08577413,118180.0,118170.0,0.13024]
[1753842297651,4.20390351,118180.0,118170.0,0.13024]
[1753842298176,4.19544199,118180.0,118170.0,0.13024]
[1753842298557,4.19544199,118180.0,118170.0,0.13124]
[1753842298959,4.20390358,118180.0,118170.0,0.13124]
[1753842299184,4.37313695,118180.0,118170.0,0.13124]
[1753842299612,0.26346895,118180.0,118170.0,0.13124]
[1753842299831,4.37313695,118180.0,118170.0,0.13124]
[1753842300212,4.36467579,118180.0,118170.0,0.13124]
[1753842301075,4.19544242,118180.0,118170.0,0.13124]
[1753842301280,4.36467579,118180.0,118170.0,0.13124]
[1753842301789,4.19544242,118180.0,118170.0,0.13124]
[1753842301998,4.18698083,118180.0,118170.0,0.13124]
[1753842302204,4.16748054,118180.0,118170.0,0.13124]
[1753842302448,4.16748054,118180.0,118170.0,0.15392]
[1753842302449,4.14478054,118180.0,118170.0,0.15392]
[1753842303270,4.16170365,118180.0,118170.0,0.15392]
[1753842303503,4.16170365,118180.0,118170.0,0.13124]
[1753842303718,4.20269365,118180.0,118170.0,0.13124]
[1753842303928,4.35500448,118180.0,118170.0,0.13124]
[1753842304135,4.44846928,118180.0,118170.0,0.13124]
[1753842304529,5.08846928,118180.0,118170.0,0.13124]
[1753842306409,5.08846928,118180.0,118170.0,0.001]
[1753842306582,5.21870928,118180.0,118170.0,0.001]
[1753842307722,5.13423198,118180.0,118170.0,0.001]
[1753842308395,5.21870928,118180.0,118170.0,0.001]
[1753842309421,4.31817793,118170.0,118160.0,4.835e-05]
[1753842309869,4.47609793,118170.0,118160.0,4.835e-05]
[1753842311862,0.70642993,118170.0,118160.0,0.00104835]
[1753842312074,0.79090723,118170.0,118160.0,0.00104835]
[1753842312292,5.00250155,118170.0,118160.0,4.835e-05]
[1753842314033,5.07697166,118170.0,118160.0,4.835e-05]
[1753842314214,5.12697166,118170.0,118160.0,4.835e-05]
[1753842314922,0.99426743,118170.0,118160.0,4.835e-05]
[1753842315163,5.10393543,118170.0,118160.0,4.835e-05]
[1753842315375,5.10693543,118170.0,118160.0,4.835e-05]
[1753842316282,5.10893543,118170.0,118160.0,4.835e-05]
[1753842316886,5.15742266,118170.0,118160.0,4.835e-05]
[1753842318101,5.13438643,118170.0,118160.0,4.835e-05]
[1753842318919,1.02471843,118170.0,118160.0,4.835e-05]
[1753842319130,5.13438643,118170.0,118160.0,4.835e-05]
[1753842320165,5.11212672,118170.0,118160.0,4.835e-05]
[1753842320376,5.45063672,118170.0,118160.0,4.835e-05]
[1753842321359,5.47289643,118170.0,118160.0,4.835e-05]
[1753842322961,5.52380643,118170.0,118160.0,4.835e-05]
[1753842324763,5.56968702,118170.0,118160.0,4.835e-05]
[1753842325592,5.56960239,118170.0,118160.0,4.835e-05]
[1753842328355,5.60012505,118170.0,118160.0,4.835e-05]
[1753842330322,5.55424446,118170.0,118160.0,4.835e-05]
[1753842332522,5.60000701,118170.0,118160.0,4.835e-05]
[1753842333987,5.59252058,118170.0,118160.0,4.835e-05]
[1753842336493,5.30682734,118170.0,118160.0,0.02995835]
[1753842336743,5.51968775,118170.0,118160.0,0.02995835]
[1753842336934,5.6154503,118170.0,118160.0,0.02995835]
[1753842337377,5.58502734,118170.0,118160.0,0.02995835]
[1753842337559,5.49131464,118170.0,118160.0,0.02995835]
[1753842337760,5.61950464,118170.0,118160.0,0.02995835]
[1753842337925,5.58502734,118170.0,118160.0,0.02995835]
[1753842339135,5.58703734,118170.0,118160.0,0.02701835]
[1753842339974,5.58705076,118170.0,118160.0,0.02701835]
[1753842340162,5.45685076,118170.0,118160.0,0.02701835]
[1753842340413,5.58705076,118170.0,118160.0,0.02701835]
[1753842340626,1.47738276,118170.0,118160.0,0.02701835]
[1753842340837,5.67152806,118170.0,118160.0,0.02701835]
[1753842341550,5.57576551,118170.0,118160.0,0.02995835]
[1753842341773,5.62148921,118170.0,118160.0,0.02995835]
[1753842343067,5.46057437,118170.0,118160.0,0.02168886]
[1753842343276,5.62148921,118170.0,118160.0,0.02375886]
[1753842343734,4.85563805,118170.0,118160.0,0.05505886]
[1753842343993,5.11542979,118170.0,118160.0,0.05505886]
[1753842344193,4.96542979,118170.0,118160.0,0.05505886]
[1753842344405,5.32287881,118170.0,118160.0,0.05505886]
[1753842344618,5.40970609,118170.0,118160.0,0.05505886]
[1753842344834,5.40207723,118170.0,118160.0,0.05505886]
[1753842345100,4.78007856,118170.0,118160.0,0.05505886]
[1753842345312,4.79620052,118170.0,118160.0,0.05505886]
[1753842345521,5.14518738,118170.0,118160.0,0.05505886]
[1753842346165,5.22666468,118170.0,118160.0,0.05505886]
[1753842346608,5.22766468,118170.0,118160.0,0.05505886]
[1753842347008,5.22566468,118170.0,118160.0,0.05505886]
[1753842347428,5.22666468,118170.0,118160.0,0.05505886]
[1753842348098,5.14218738,118170.0,118160.0,0.05505886]
[1753842348320,5.12391463,118170.0,118160.0,0.05505886]
[1753842349559,5.11553702,118170.0,118160.0,0.05505886]
[1753842360219,5.11549702,118170.0,118160.0,0.05505886]
[1753842364051,5.10917471,118170.0,118160.0,0.02081886]
[1753842364563,5.19365201,118170.0,118160.0,0.02081886]
[1753842366469,5.19365201,118170.0,118160.0,0.03691886]
[1753842367119,5.19365201,118170.0,118160.0,0.05231886]
[1753842367326,5.19365201,118170.0,118160.0,0.05546886]
[1753842368160,5.19365201,118170.0,118160.0,0.03691886]
[1753842368576,1.08398401,118170.0,118160.0,0.03691886]
[1753842368930,5.19365201,118170.0,118160.0,0.03691886]
[1753842369753,5.19365201,118170.0,118160.0,0.02081886]
[1753842371600,5.19365201,118170.0,118160.0,0.01874886]
[1753842371815,4.27894434,118150.0,118140.0,0.05907]
[1753842372049,4.73628502,118150.0,118140.0,0.06115]
[1753842372250,4.73147433,118150.0,118140.0,0.06115]
[1753842372618,4.64699703,118150.0,118140.0,0.06115]
[1753842372850,4.64485703,118150.0,118140.0,0.06115]
[1753842373320,4.64485703,118150.0,118140.0,0.06215]
[1753842374083,4.64699703,118150.0,118140.0,0.06215]
[1753842377142,4.65546063,118150.0,118140.0,0.06215]
[1753842378195,4.48618429,118150.0,118140.0,0.06215]
[1753842378610,4.49464774,118150.0,118140.0,0.06215]
[1753842378785,4.484044,118150.0,118140.0,0.06215]
[1753842378937,4.50097148,118150.0,118140.0,0.06215]
[1753842379141,4.50097141,118150.0,118140.0,0.06215]
[1753842379751,4.484044,118150.0,118140.0,0.06215]
[1753842379998,4.49250774,118150.0,118140.0,0.06215]
[1753842381544,4.49463774,118150.0,118140.0,0.06215]
[1753842381750,4.66391408,118150.0,118140.0,0.06215]
[1753842381959,4.66391408,118150.0,118140.0,0.044]
[1753842382163,4.66391408,118150.0,118140.0,0.0279]
[1753842382367,4.66391408,118150.0,118140.0,0.02582]
[1753842383744,4.74839138,118150.0,118140.0,0.02582]
[1753842385069,4.739928,118150.0,118140.0,0.02582]
[1753842385532,4.7591044,118150.0,118140.0,0.0014]
[1753842385927,0.6494364,118150.0,118140.0,0.0014]
[1753842386276,4.7591044,118150.0,118140.0,0.0014]
[1753842387527,4.7591044,118150.0,118140.0,0.0004]
[1753842388415,4.7591044,118150.0,118140.0,0.0014]
[1753842392175,4.7591044,118150.0,118140.0,0.02548]
[1753842395350,4.47771033,118150.0,118140.0,0.02761]
[1753842395565,4.48404386,118150.0,118140.0,0.06262]
[1753842396423,4.45813117,118150.0,118140.0,0.06262]
[1753842396645,4.449668,118150.0,118140.0,0.06262]
[1753842397958,4.46659469,118150.0,118140.0,0.06262]
[1753842398239,0.35692669,118150.0,118140.0,0.1927]
[1753842398464,0.35692662,118150.0,118140.0,0.1927]
[1753842398679,4.45813124,118150.0,118140.0,0.1927]
[1753842399099,4.449668,118150.0,118140.0,0.1927]
[1753842399555,4.45813117,118150.0,118140.0,0.1927]
[1753842399978,4.55107178,118150.0,118140.0,0.1927]
[1753842400196,4.56799891,118150.0,118140.0,0.1927]
[1753842400408,4.55953531,118150.0,118140.0,0.1927]
[1753842400623,4.45813117,118150.0,118140.0,0.1927]
[1753842400833,4.449668,118150.0,118140.0,0.1927]
[1753842401261,0.34,118150.0,118140.0,0.1927]
[1753842401915,0.34846317,118150.0,118140.0,0.1927]
[1753842402114,0.34,118150.0,118140.0,0.1927]
[1753842404620,0.34846317,118150.0,118140.0,0.1927]
[1753842405054,0.45149869,118150.0,118140.0,0.1927]
[1753842405692,0.44303495,118150.0,118140.0,0.1927]
[1753842405934,0.46209243,118150.0,118140.0,0.18949]
[1753842406167,0.45362862,118150.0,118140.0,0.18949]
[1753842406398,0.43670142,118150.0,118140.0,0.1927]
[1753842406615,0.37385353,118150.0,118140.0,0.1927]
[1753842406863,0.36538993,118150.0,118140.0,0.1927]
[1753842407095,0.35692648,118150.0,118140.0,0.1927]
[1753842407339,0.35692648,118150.0,118140.0,0.23178516]
[1753842407340,0.34,118150.0,118140.0,0.23178516]
[1753842407818,0.4437,118160.0,118140.0,0.23178516]
[1753842408046,0.4437,118160.0,118140.0,0.17269516]
[1753842408047,4.109668,118150.0,118140.0,0.17269516]
[1753842408270,0.34,118150.0,118140.0,0.25717246]
[1753842408726,0.34,118150.0,118140.0,0.31749246]
[1753842409432,0.34,118150.0,118140.0,0.31649246]
[1753842410087,0.34,118150.0,118140.0,0.31949246]
[1753842414272,0.34,118150.0,118140.0,0.32049246]
[1753842414678,0.34,118150.0,118140.0,0.19041246]
[1753842414895,0.38469676,118150.0,118140.0,0.17348516]
[1753842415096,0.38469684,118150.0,118140.0,0.17348516]
[1753842415297,0.37623331,118150.0,118140.0,0.17348516]
[1753842415495,0.36777,118150.0,118140.0,0.17348516]
[1753842415703,0.34196,118150.0,118140.0,0.23590516]
[1753842416011,0.34196,118150.0,118140.0,0.23190516]
[1753842416227,0.34,118150.0,118140.0,0.23390516]
[1753842416827,0.34,118150.0,118140.0,0.31838246]
[1753842417903,0.33855839,118170.0,118160.0,0.03908516]
[1753842418109,0.33855839,118170.0,118160.0,0.31478246]
[1753842418110,0.67855839,118170.0,118160.0,0.31478246]
[1753842418991,0.67955839,118170.0,118160.0,0.31478246]
[1753842419414,0.68055839,118170.0,118160.0,0.31478246]
[1753842419654,0.67855839,118170.0,118160.0,0.31478246]
[1753842419880,0.67855839,118170.0,118160.0,0.31678246]
[1753842428370,0.33855839,118170.0,118160.0,0.31678246]
[1753842430826,0.34051839,118170.0,118160.0,0.31370246]
[1753842431045,0.36632839,118170.0,118160.0,0.25556246]
[1753842431261,0.36632839,118170.0,118160.0,0.2164773]
[1753842431498,0.78038421,118170.0,118160.0,0.13196]
[1753842431732,0.77963886,118170.0,118160.0,0.13196]
[1753842433079,0.77963879,118170.0,118160.0,0.13196]
[1753842433756,0.77117648,118170.0,118160.0,0.13196]
[1753842433977,0.76271424,118170.0,118160.0,0.13196]
[1753842434213,0.76271417,118170.0,118160.0,0.13196]
[1753842434642,0.77963871,118170.0,118160.0,0.13196]
[1753842435291,0.92350062,118170.0,118160.0,0.13196]
[1753842435961,5.05061764,118170.0,118160.0,0.13196]
[1753842436447,5.13509494,118170.0,118160.0,0.13196]
[1753842437558,5.05061764,118170.0,118160.0,0.13196]
[1753842439192,5.20061764,118170.0,118160.0,0.002]
[1753842439400,5.50279735,118170.0,118160.0,0.002]
[1753842439633,5.56501494,118170.0,118160.0,0.002]
[1753842439856,5.64949224,118170.0,118160.0,0.002]
[1753842440283,4.33614198,118160.0,118150.0,0.12992]
[1753842440510,4.33828198,118160.0,118150.0,0.12992]
[1753842440719,4.36588198,118160.0,118150.0,0.12992]
[1753842441940,4.70588198,118160.0,118150.0,0.12992]
[1753842442152,4.79035928,118160.0,118150.0,0.12992]
[1753842442852,4.79135928,118160.0,118150.0,0.12992]
[1753842443491,0.01692684,118150.0,118140.0,0.13032]
[1753842443711,4.15953484,118150.0,118140.0,0.13032]
[1753842443917,4.19559808,118150.0,118140.0,0.13032]
[1753842444131,4.18713455,118150.0,118140.0,0.13032]
[1753842444336,4.195598,118150.0,118140.0,0.15458]
[1753842445212,4.20406167,118150.0,118140.0,0.15458]
[1753842445429,4.195598,118150.0,118140.0,0.15458]
[1753842445645,4.152998,118150.0,118140.0,0.15458]
[1753842446058,4.16146153,118150.0,118140.0,0.15458]
[1753842446263,4.16146153,118150.0,118140.0,0.15558]
[1753842447630,4.152998,118150.0,118140.0,0.15558]
[1753842448088,4.14453455,118150.0,118140.0,0.15558]
[1753842448338,4.12873455,118150.0,118140.0,0.15558]
[1753842448581,4.12873455,118150.0,118140.0,0.15773]
[1753842449272,4.137198,118150.0,118140.0,0.15773]
[1753842449770,4.1456616,118150.0,118140.0,0.15773]
[1753842450211,4.153298,118150.0,118140.0,0.15773]
[1753842450664,4.24623897,118150.0,118140.0,0.15773]
[1753842450881,4.27383897,118150.0,118140.0,0.13132]
[1753842451116,4.29850271,118150.0,118140.0,0.13132]
[1753842451309,4.29003897,118150.0,118140.0,0.13132]
[1753842451576,4.2055616,118150.0,118140.0,0.13132]
[1753842451801,4.21402534,118150.0,118140.0,0.13132]
[1753842452063,4.38330168,118150.0,118140.0,0.13132]
[1753842452277,4.3753607,118150.0,118140.0,0.13132]
[1753842453200,4.21454817,118150.0,118140.0,0.13132]
[1753842453422,4.20608436,118150.0,118140.0,0.13132]
[1753842453654,4.20608436,118150.0,118140.0,0.15558]
[1753842454101,4.21454774,118150.0,118140.0,0.13132]
[1753842454297,4.19834774,118150.0,118140.0,0.15558]
[1753842454548,4.36762408,118150.0,118140.0,0.15558]
[1753842454772,4.18988357,118150.0,118140.0,0.15558]
[1753842455009,4.18242069,118150.0,118140.0,0.15558]
[1753842455202,4.18242126,118150.0,118140.0,0.15558]
[1753842455435,4.20681126,118150.0,118140.0,0.15558]
[1753842456758,4.36762422,118150.0,118140.0,0.13132]
[1753842456981,4.18988414,118150.0,118140.0,0.13132]
[1753842457243,4.18988414,118150.0,118140.0,0.15558]
[1753842457813,4.35916048,118150.0,118140.0,0.15558]
[1753842458018,4.37486048,118150.0,118140.0,0.13132]
[1753842460671,4.45933778,118150.0,118140.0,0.13132]
[1753842460941,4.45087433,118150.0,118140.0,0.13132]
[1753842461383,4.44241066,118150.0,118140.0,0.0014]
[1753842461588,5.31902767,118150.0,118140.0,0.0014]
[1753842462294,5.7314839,118150.0,118140.0,0.0014]
[1753842462722,5.7314839,118150.0,118140.0,0.0004]
[1753842462929,5.69148874,118150.0,118140.0,0.0004]
[1753842463143,5.71574874,118150.0,118140.0,0.0004]
[1753842463344,5.71674874,118150.0,118140.0,0.0004]
[1753842463993,5.69371251,118150.0,118140.0,0.0004]
[1753842464198,5.5859755,118150.0,118140.0,0.0004]
[1753842464412,5.5617155,118150.0,118140.0,0.0004]
[1753842464633,5.5627155,118150.0,118140.0,0.0004]
[1753842464896,5.5637155,118150.0,118140.0,0.0004]
[1753842465528,5.5627155,118150.0,118140.0,0.0004]
[1753842465744,5.6491928,118150.0,118140.0,0.0004]
[1753842465987,5.5183128,118150.0,118140.0,0.0004]
[1753842466213,5.6501928,118150.0,118140.0,0.0004]
[1753842466432,1.5405248,118150.0,118140.0,0.0004]
[1753842466651,5.6501928,118150.0,118140.0,0.0004]
[1753842466848,5.5203128,118150.0,118140.0,0.0004]
[1753842467069,5.5657155,118150.0,118140.0,0.0004]
[1753842467544,5.58399588,118150.0,118140.0,0.0004]
[1753842467773,5.5657155,118150.0,118140.0,0.0004]
[1753842468014,5.58399605,118150.0,118140.0,0.0004]
[1753842471679,5.45411605,118150.0,118140.0,0.0004]
[1753842471890,5.58399605,118150.0,118140.0,0.0004]
[1753842472963,5.63490605,118150.0,118140.0,0.0004]
[1753842473383,5.50502605,118150.0,118140.0,0.0004]
[1753842473604,5.42308121,118150.0,118140.0,0.0004]
[1753842473848,5.42308121,118150.0,118140.0,0.02471]
[1753842474747,5.50755851,118150.0,118140.0,0.0004]
[1753842475936,5.37767851,118150.0,118140.0,0.0004]
[1753842476403,5.50755851,118150.0,118140.0,0.0004]
[1753842477751,5.37767851,118150.0,118140.0,0.0004]
[1753842477966,5.50755851,118150.0,118140.0,0.0004]
[1753842480388,5.53036969,118150.0,118140.0,0.0004]
[1753842480843,1.42070169,118150.0,118140.0,0.0004]
[1753842481189,5.53036969,118150.0,118140.0,0.0004]
[1753842481410,5.50755851,118150.0,118140.0,0.0004]
[1753842481873,5.53036969,118150.0,118140.0,0.0004]
[1753842482034,5.44589239,118150.0,118140.0,0.0004]
[1753842482251,5.39869121,118150.0,118140.0,0.02471]
[1753842482841,5.44960121,118150.0,118140.0,0.02471]
[1753842483148,5.47256787,118150.0,118140.0,0.0004]
[1753842483549,5.44959787,118150.0,118140.0,0.0004]
[1753842483763,5.44638787,118150.0,118140.0,0.02471]
[1753842484194,5.31650787,118150.0,118140.0,0.02471]
[1753842484409,5.44638787,118150.0,118140.0,0.02471]
[1753842485245,5.46935787,118150.0,118140.0,0.02471]